Cogmind - Beta 13 @@@ ROGUE MODE // 2024.03.30 @ 22:54:10 Player: Isopropylpod Result: Destroyed by D-53 Grenadier with Mini Grenade Launcher Performance ------------- Evolutions (1) 500 Regions Visited (3) 600 Robots Destroyed (20) 100 Value Destroyed (485) 485 Prototype IDs (2) 40 Alien Tech Used (0) 0 Bonus (0) 0 TOTAL SCORE: 1725 Bonus ------- None Cogmind --------- Core Integrity 0/400 Matter 285/300 Energy 75/100 System Corruption 0% Temperature Cool (0) Movement Core (800) Ox15 Location -9/Mines Parts ------- > --- POWER (1) -------- (None) > --- PROPULSION (4) --- (None) > --- UTILITY (2) ------ Heat Sink High-capacity Storage Unit > --- WEAPON (2) ------- Light EM Pulse Cannon Grenade Launcher > --- INVENTORY (20) --- Light EM Pulse Cannon Light EM Pulse Cannon Peak State ------------ > --- POWER ------------ Light Ion Engine > --- PROPULSION ------- Aluminum Leg Aluminum Leg Aluminum Leg Aluminum Leg > --- UTILITY ---------- High-capacity Storage Unit Medium Armor Plating > --- WEAPON ----------- EM Pulse Gun Light EM Pulse Cannon > --- INVENTORY -------- Ion Engine Aluminum Leg Light EM Pulse Cannon Light EM Pulse Cannon Grenade Launcher [Rating: 11] Favorites ----------- Power Light Ion Engine Engine Light Ion Engine Propulsion Aluminum Leg Leg Aluminum Leg Utility High-capacity Storage Unit Device Heat Sink Storage High-capacity Storage Unit Protection Medium Armor Plating Weapon EM Pulse Gun Energy Gun EM Pulse Gun Energy Cannon Light EM Pulse Cannon Launcher Grenade Launcher Build | -11 -10 -9 -9 ------- Run | Yrd Mat Mat Min Slots Evolved 2 | . . 2 . Power . | . . . . Propulsion 2 | . . 2 . Utility . | . . . . Weapon . | . . . . Parts Attached 19 | 6 . 9 4 Power 2 | 1 . . 1 Engine 2 | 1 . . 1 Core . | . . . . Reactor . | . . . . Propulsion 7 | 2 . 4 1 Treads . | . . . . Leg 7 | 2 . 4 1 Wheel . | . . . . Hover . | . . . . Flight . | . . . . Utility 4 | 1 . 2 1 Device 1 | . . . 1 Storage 2 | 1 . 1 . Processor . | . . . . Hackware . | . . . . Protection 1 | . . 1 . Artifact . | . . . . Weapon 6 | 2 . 3 1 Energy Gun 3 | 2 . 1 . Energy Cannon 2 | . . 2 . Ballistic Gun . | . . . . Ballistic Cannon . | . . . . Launcher 1 | . . . 1 Special Weapon . | . . . . Impact Weapon . | . . . . Slashing Weapon . | . . . . Piercing Weapon . | . . . . Special Melee Weapon . | . . . . Unidentified Prototypes . | . . . . Parts Lost 12 | . . 5 7 Power 2 | . . 1 1 Propulsion 6 | . . 1 5 Utility 1 | . . 1 . Weapon 3 | . . 2 1 Highest Loss Streak 7 | . . 4 7 To Critical Strikes . | . . . . Average Slot Usage (%) 89 | . 85 93 75 Engine 10 | . 14 9 3 Leg 39 | . 28 44 40 Storage 11 | . 14 11 11 Protection 4 | . . 6 . Energy Gun 20 | . 28 19 9 Energy Cannon 2 | . . 2 11 Naked Turns . | . . . . Heaviest Build 56 | 12 12 56 52 Greatest Support 40 | 20 20 40 40 Greatest Overweight (x) 15 | . . 1 15 Average Overweight (x) . | . . . 1 Largest Inventory Capacity 20 | 8 8 20 20 Average Capacity 15 | 7 8 18 20 Most Carried 6 | 1 4 6 6 Average Carried 4 | . 2 4 5 Final Capacity 20 | 8 8 20 20 Final Carried 6 | 1 4 6 2 Class Distribution -------------------- 92% | Mutant 7% | Scavenger-Mutant Dominant Class ---------------- Mutant | -10/Materials Mutant | -9/Materials Scavenger-Mutant | -9/Mines Resources | -11 -10 -9 -9 ----------- Run | Yrd Mat Mat Min Matter Collected 335 | 206 54 75 . Remotely . | . . . . Salvage Created 768 | . 81 687 . Parts 36 | . 4 32 . Haulers Intercepted . | . . . . Recyclers Shooed 4 | . 1 3 . Parts Field Recycled . | . . . . Retrieved Matter . | . . . . Parts Self-Destructed . | . . . . Prevented . | . . . . Kills | -11 -10 -9 -9 ------- Run | Yrd Mat Mat Min Combat Hostiles Destroyed 13 | . 2 11 . Guns 8 | . . 8 . Cannons 1 | . . 1 . AOE 3 | . 2 1 . Classes Destroyed 8 | . 1 7 . Builder 1 | . . 1 . Recycler 2 | . . 2 . Mechanic 1 | . . 1 . Watcher 3 | . . 3 . Swarmer 3 | . . 3 . Grunt 8 | . 2 6 . Duelist 1 | . . 1 . Sentry 1 | . . 1 . Best Kill Streak 5 | . 2 5 . Combat Bots Only 4 | . 2 4 . Max Kills in Single Turn 2 | . 2 2 . Gunslinging . | . . . . Exploded 2 | . 2 1 . Melee . | . . . . Uniques/NPCs Destroyed . | . . . . Combat | -11 -10 -9 -9 -------- Run | Yrd Mat Mat Min Hostile Shots Fired 104 | . 5 62 37 Missed 26 | . 3 13 10 Damage Taken 1537 | . 53 678 806 Core 427 | . 10 77 340 Absorbed by Shields . | . . . . Core Remaining (%) 98 | 100 96 . . Volleys Fired 48 | . 5 42 1 Largest 2 | . 2 2 1 Hottest 112 | . 80 112 56 Shots Fired 86 | . 10 75 1 Gun 78 | . 10 68 . Cannon 8 | . . 7 1 Launcher . | . . . . Special . | . . . . Kinetic . | . . . . Thermal 11 | . . 11 . Explosive . | . . . . Electromagnetic 75 | . 10 64 1 Robot Hit Streak 9 | . 3 9 . Robot Miss Streak 4 | . 1 4 1 Penetration Max . | . . . . Secondary Targets . | . . . . Shots Hit Robots 54 | . 7 47 . Core Hits 26 | . 4 22 . Critical Kills . | . . . . Critical Parts Destroyed . | . . . . Critical Strikes 1 | . . 1 . Burn 1 | . . 1 . Melee Attacks . | . . . . Impact . | . . . . Slashing . | . . . . Piercing . | . . . . Sneak Attacks . | . . . . Combat Hostiles . | . . . . Follow-up Attacks . | . . . . Damage Inflicted 1204 | . 184 1020 . Guns 778 | . 95 683 . Cannons 103 | . . 103 . Explosions 302 | . 89 213 . Melee . | . . . . Ramming 21 | . . 21 . Kinetic . | . . . . Thermal 463 | . 89 374 . Explosive . | . . . . Electromagnetic 720 | . 95 625 . Impact . | . . . . Slashing . | . . . . Piercing . | . . . . Highest Corruption . | . . . . Average Corruption . | . . . . Corruption Purged . | . . . . Corruption Blocked . | . . . . Overload Shots . | . . . . Overflow Damage . | . . . . Projectiles . | . . . . Explosions . | . . . . Melee . | . . . . Knockbacks . | . . . . Impact . | . . . . Kinetic . | . . . . Secondary . | . . . . Self-Inflicted Damage 32 | . 32 . . Shots 1 | . 1 . . Rammed . | . . . . Targets Rammed 3 | . . 3 . Kicked 3 | . . 3 . Crushed . | . . . . Highest Temperature 252 | . 72 252 10 Average Temperature 97 | . 35 106 7 Received Heat Transfer 192 | . 12 180 . Siege Activations . | . . . . Robots Corrupted 1 | . . 1 . Combat Hostiles 1 | . . 1 . Parts Fried 2 | . . 2 . Impact Corruptions . | . . . . Robots Melted . | . . . . Combat Hostiles . | . . . . Parts Melted 2 | . . 2 . Heat Transferred 831 | . 150 681 . Parts Sabotaged . | . . . . Parts Stolen . | . . . . Parts Stripped . | . . . . Power Chain Reactions 6 | . 2 4 . Alert | -11 -10 -9 -9 ------- Run | Yrd Mat Mat Min Peak Influence 296 | . 75 296 60 Initial 60 | . . 31 60 Average 87 | . 28 128 51 Maximum Alert Level 1 | . . 1 . Low Security (%) 89 | 100 100 83 100 Level 1 10 | . . 16 . Level 2 . | . . . . Level 3 . | . . . . Level 4 . | . . . . Level 5 . | . . . . High Security . | . . . . Max Security . | . . . . Squads Dispatched 3 | . 1 2 . Investigation 1 | . . 1 . Extermination . | . . . . Reinforcement 2 | . 1 1 . Assault . | . . . . Garrison . | . . . . Intercept . | . . . . Searches Triggered . | . . . . Construction Impeded . | . . . . Haulers Reinforced . | . . . . Active Scanning Responses . | . . . . Cargo Convoy Interrupts . | . . . . Stealth | -11 -10 -9 -9 --------- Run | Yrd Mat Mat Min Distress Signals . | . . . . Communications Jammed . | . . . . Distress Signals . | . . . . Times Spotted 43 | . 4 18 21 Peak Tracking Total 17 | . 3 5 17 Tactical Retreats . | . . . . Traps | -11 -10 -9 -9 ------- Run | Yrd Mat Mat Min Traps Triggered . | . . . . Indirectly . | . . . . Trap Hack Attempts . | . . . . Triggered . | . . . . Disarmed . | . . . . Reprogrammed . | . . . . Reused . | . . . . Traps Extracted . | . . . . Installed . | . . . . Triggered . | . . . . Machines | -11 -10 -9 -9 ---------- Run | Yrd Mat Mat Min Machines Disabled 1 | . . 1 . Max in Single Turn 1 | . . 1 . Machines Repaired . | . . . . Machines Dismantled . | . . . . Machines Sabotaged . | . . . . Overloaded Fab Kills . | . . . . Hacking | -11 -10 -9 -9 --------- Run | Yrd Mat Mat Min Machines Accessed 4 | . 2 2 . Terminals 4 | . 2 2 . Fabricators . | . . . . Repair Stations . | . . . . Recycling Units . | . . . . Scanalyzers . | . . . . Garrison Access . | . . . . Total Hacks 13 | . 4 9 . Successful 8 | . 2 6 . Failed 5 | . 2 3 . Catastrophic 3 | . 1 2 . Database Lockouts . | . . . . Manual . | . . . . Terminals 13 | . 4 9 . Fabricators . | . . . . Repair Stations . | . . . . Recycling Units . | . . . . Scanalyzers . | . . . . Garrison Access . | . . . . Terminal Hacks 8 | . 2 6 . Record 3 | . . 3 . Prototype ID Bank 1 | . . 1 . Branch Access Points 1 | . . 1 . Locate Traps 1 | . 1 . . Recall Investigation 1 | . . 1 . Registered Components 1 | . 1 . . Fabricator Hacks . | . . . . Repair Station Hacks . | . . . . Recycling Unit Hacks . | . . . . Scanalyzer . | . . . . Garrison Access Hacks . | . . . . Unauthorized Hacks . | . . . . Terminals . | . . . . Fabricators . | . . . . Repair Stations . | . . . . Recycling Units . | . . . . Scanalyzers . | . . . . Garrison Access . | . . . . Data Cores Recovered . | . . . . Used . | . . . . Hacking Detections 4 | . 2 2 . Full Trace Events 2 | . . 2 . Feedback Events . | . . . . Feedback Blocked . | . . . . Robot Schematics Acquired . | . . . . Robots Built . | . . . . Authchips . | . . . . Time . | . . . . Total Robot Build Rating . | . . . . Part Schematics Acquired . | . . . . Parts Built . | . . . . Authchips . | . . . . Time . | . . . . Total Part Build Rating . | . . . . Parts Repaired . | . . . . Time . | . . . . Parts Recycled . | . . . . Recycled Matter . | . . . . Retrieved Matter . | . . . . Retrieved Components . | . . . . Parts Scanalyzed . | . . . . Part Schematics Acquired . | . . . . Parts Damaged . | . . . . Bothacking | -11 -10 -9 -9 ------------ Run | Yrd Mat Mat Min Used RIF Installer . | . . . . Robots Hacked . | . . . . Non-combat . | . . . . Combat . | . . . . Robot Hacks Applied . | . . . . Relay Couplers Released . | . . . . Fabnet Peak Effective % . | . . . . Robots Rewired . | . . . . Allies Hacked . | . . . . Hacks Repelled . | . . . . Allies | -11 -10 -9 -9 -------- Run | Yrd Mat Mat Min Total Allies . | . . . . Largest Group . | . . . . Highest-Rated Group . | . . . . Highest-Rated Ally . | . . . . Total Orders . | . . . . Ally Attacks . | . . . . Total Damage . | . . . . Kills . | . . . . Allies Corrupted . | . . . . Allies Melted . | . . . . Intel | -11 -10 -9 -9 ------- Run | Yrd Mat Mat Min Robot Analysis Total . | . . . . Derelict Logs Recovered . | . . . . Drone Launches . | . . . . Drone Recoveries . | . . . . Exploration | -11 -10 -9 -9 ------------- Run | Yrd Mat Mat Min Turns Passed 818 | 71 183 488 76 Spaces Moved 416 | 52 138 190 36 Core 2 | 1 . . 1 Treads . | . . . . Legs 414 | 51 138 190 35 Wheels . | . . . . Hover . | . . . . Flight . | . . . . Fastest Speed 50 | 50 120 120 190 Average Speed 153 | 118 120 177 208 Slowest Speed 800 | 120 120 190 800 Overloaded Moves . | . . . . Propulsion Burnouts . | . . . . Robots Hopped . | . . . . Cave-ins Triggered . | . . . . Exploration Rate (%) 16 | 4 22 21 19 Regions Visited 3 Branch Regions 1 Pre-discovered Areas . | . . . . Known Exits Taken 1 | . . 1 . Unknown Exits Taken 2 | 1 1 . . Scrap Searched . | . . . . Spaces Dug . | . . . . Terrain Destroyed 15 | . 2 13 . Melee . | . . . . Projectile . | . . . . AOE 15 | . 2 13 . Terrain Rammed . | . . . . Walls Destroyed . | . . . . Machines Disabled . | . . . . Actions | -11 -10 -9 -9 --------- Run | Yrd Mat Mat Min Total 506 | 58 145 262 41 Wait 12 | . . 12 . Move 413 | 51 137 189 36 Hop . | . . . . Pick Up 10 | 1 3 6 . Fast Attach 8 | 6 . 2 . Attach 9 | . . 5 4 Detach . | . . . . Swap 2 | . . 2 . Drop 1 | . . 1 . Fire 48 | . 5 42 1 Melee . | . . . . Ram . | . . . . Kick 3 | . . 3 . Crush . | . . . . Escape Stasis . | . . . . Rewire . | . . . . Trap . | . . . . Miscellaneous . | . . . . Route ------- -11/Scrapyard -10/Materials -9/Materials (discovered 2 exits: *Min x2) -9/Mines (discovered 1 exit: [*Zio]) History --------- Turn | Location | Event 37 | -11/Scrapyard | Discovered new exit (range 16) 72 | -11/Scrapyard | Entered Materials 189 | -10/Materials | Discovered new exit (range 11) 255 | -10/Materials | Entered another Materials area 255 | -9/Materials | Evolved 2 slots: Propulsion x2 283 | -9/Materials | Identified exit to Mines 328 | -9/Materials | Build established: Mutant 712 | -9/Materials | Lost 4 parts (1p1n1u1w) 743 | -9/Materials | Entered Mines 744 | -9/Mines | A Derelict revealed a hidden shortcut to a safe place 744 | -9/Mines | Assembled infested the area 749 | -9/Mines | Assisted by a Guerilla fighting off Assembled 795 | -9/Mines | Core integrity fell below 50% 812 | -9/Mines | Core integrity fell below 20% 817 | -9/Mines | Met a Derelict bent on vengeance 819 | -9/Mines | Destroyed by D-53 Grenadier with Mini Grenade Launcher Last Messages --------------- U-05 Engineer destroyed. The unstable cave ceiling collapses. Aluminum Leg destroyed. U-05 Engineer builds a Wall. as-56874 destroyed. The unstable cave ceiling collapses. D-53 Grenadier knocked back. Aluminum Leg destroyed. Beam Rifle destroyed. The unstable cave ceiling collapses. U-05 Engineer lays Concrete. Aluminum Leg destroyed. U-05 Engineer lays Concrete. The unstable cave ceiling collapses. U-05 Engineer lays Concrete. Ion Engine destroyed. U-05 Engineer lays Concrete. Aluminum Leg destroyed. U-05 Engineer lays Concrete. [Achievement: First Step to Greatness] Map ----- +----------------------------------------------------+ | ?????????????????????????????????????????????????? | | ?????????????????????????????????????????????????? | | ?????????????????????????????????????????????????? | | ?????????????????????????????????????????????????? | | ?????????????????????????????????????????????????? | | ?????????????????????????????????????????????????? | | ??????????????????????###????????????????????????? | | ??????????????????????# ????????????????????????? | | ??????????????####????# #????????????????????????? | | ?????????????? #??### ####??????????? ?????????? | | ??????????????# #??# #######??## ????????? | | ??????????????# #### # ### ????????? | | ??????????????# ## ! ???????? | | ???????????#### ## !% ???????? | | ??####### ## # ## * ???????? | | # # #???????? | | ?????###### # #?????????? | | ??????????## # ###???????? | | ???????????## ### a = "%" ??????? | | ????????????## ###a # d % ##????????? | | ?????????????## ## * #?????????? | | ??????????????## ## ;#????????? | | ???????????????#> # a ####????????? | | ???????????????# ## u ##???????????? | | ???????????????## ### ###???????????? | | ????????????????###?## @r # ##?????????????? | | ????????????????????# #####??????????????? | | ????????????????????## ##??????????????????? | | ?????????????????????#### ##???????????????????? | | ???????????????????????? ????????????????????? | | ???????????????????????? ???????????????????? | | ???????????????????????? ??????????????????? | | ??????????????????????? ?????????????????? | | ???????????????????????# #????????????????? | | ???????????????????????## ##????????????????? | | ???????????????????????? #?????????????????? | | ????????????????????????? #?????????????????? | | ?????????????????????????# #?????????????????? | | ?????????????????????????? #?????????????????? | | ??????????????????????????# ???????????????????? | | ??????????????????????????? ?????????????????????? | | ?????????????????????????????????????????????????? | | ?????????????????????????????????????????????????? | | ?????????????????????????????????????????????????? | | ?????????????????????????????????????????????????? | | ?????????????????????????????????????????????????? | | ?????????????????????????????????????????????????? | | ?????????????????????????????????????????????????? | | ?????????????????????????????????????????????????? | | ?????????????????????????????????????????????????? | +----------------------------------------------------+ Best States ------------- Heat Dissipation 28 Energy Generation 10 Energy Capacity 250 Matter Stores 300 Matter Capacity 300 Sight Range 16 Terrain Scan Density 10 Armor Coverage 225 Evasion (%) 55 Item Schematics ----------------- None Robot Schematics ------------------ None Fabricated ------------ Nothing Alien Tech Used ----------------- None Achievements -------------- First Step to Greatness Power Corrupts Challenges ------------ None Game ------ Seed TripodBombardmentTrap Manual? 0 Play Time 00:13:46 Cumulative 3.2 hours Start 2024.03.30 @ 22:42:02 End 2024.03.30 @ 22:54:10 Sessions 1 Manual Loads 0 Difficulty Rogue Special Mode None Game No. 7 Rogue 7 Adventurer 0 Explorer 0 Win Type - Total 0 Types 0/0/0/0/0/0/0/0/0 Lore% 3 Gallery% 7 Achievement% 7 Wizard Run 0 Options --------- Layout 1 ASCII 0 Keyboard 0 Movement Mouse Keybinds 0 Fullscreen 1 Font 36/Smallcaps Map View 50x40 Zoom Use 0% Tactical HUD 0 Map Filters NONE Filters NONE Steam 1 RUN: 006907b3-c195-4d14-a397-1ba2df440010